Cogmind - Beta 13 @@@ ROGUE MODE // 2024.04.17 @ 19:20:48 Player: Thaleia Result: Destroyed by S-27 Virus with Autogun Performance ------------- Evolutions (5) 2500 Regions Visited (7) 1400 Robots Destroyed (104) 520 Value Destroyed (3683) 3683 Prototype IDs (5) 100 Alien Tech Used (0) 0 Bonus (243) 243 TOTAL SCORE: 8446 Bonus ------- High Alert Combat Kills 288 Follower Combat Kills 280 Friendly Fire -325 Cogmind --------- Core Integrity 0/1000 Matter 122/300 Energy 98/100 System Corruption 0% Temperature Cool (0) Movement Core (50) Location -5/Factory Parts ------- > --- POWER (2) -------- (None) > --- PROPULSION (4) --- (None) > --- UTILITY (8) ------ (None) > --- WEAPON (3) ------- (None) > --- INVENTORY (5) ---- Armored Leg Launcher Loader Flak Gun Peak State ------------ > --- POWER ------------ Light Angular Momentum Engine > --- PROPULSION ------- Gravmag System Gravmag System Gravmag System Gravmag System > --- UTILITY ---------- Improved Heat Sink Advanced Sensor Array Improved Signal Interpreter Advanced Melee Analysis Suite Layered Light Armor Plating Layered Light Armor Plating Layered Light Armor Plating > --- WEAPON ----------- Heavy Plasma Cannon Magnetic Acceleration Cannon Magnetic Acceleration Cannon > --- INVENTORY -------- Fusion Compressor Energy Filter Hacking Suite Component Analysis Suite Falx [Rating: 66] Favorites ----------- Power Light Angular Momentum Engine Engine Light Angular Momentum Engine Power Core Light Nuclear Core Propulsion Aluminum Leg Treads Advanced Treads Leg Aluminum Leg Hover Unit Gravmag System Flight Unit VTOL Module Utility Layered Light Armor Plating Device Improved Sensor Array Storage Medium Storage Unit Processor Improved Signal Interpreter Protection Layered Light Armor Plating Weapon Assault Rifle Energy Gun High-powered Shock Rifle Energy Cannon Heavy Plasma Cannon Ballistic Gun Assault Rifle Ballistic Cannon Magnetic Acceleration Cannon Launcher Advanced EMP Blaster Slashing Weapon Scythe Build | -11 -10 -9 -8 -8 -7 -6 -5 ------- Run | Yrd Mat Mat Mat Sto Fac Fac Fac Slots Evolved 10 | . . 2 2 . 2 2 2 Power 1 | . . . . . . . 1 Propulsion 2 | . . 1 . . 1 . . Utility 6 | . . 1 1 . 1 2 1 Weapon 1 | . . . 1 . . . . Parts Attached 148 | 6 14 17 21 32 3 45 10 Power 18 | 2 3 4 1 2 1 4 1 Engine 16 | 2 3 4 1 1 1 4 . Core 2 | . . . . 1 . . 1 Reactor . | . . . . . . . . Propulsion 38 | 2 4 3 7 6 . 13 3 Treads 15 | . . . 6 6 . 3 . Leg 10 | 2 4 3 1 . . . . Wheel . | . . . . . . . . Hover 10 | . . . . . . 8 2 Flight 3 | . . . . . . 2 1 Utility 42 | . 4 4 3 9 1 17 4 Device 25 | . 2 1 2 5 1 11 3 Storage 5 | . 2 . . 2 . 1 . Processor 2 | . . . . . . 2 . Hackware . | . . . . . . . . Protection 10 | . . 3 1 2 . 3 1 Artifact . | . . . . . . . . Weapon 50 | 2 3 6 10 15 1 11 2 Energy Gun 3 | . . . . . . 3 . Energy Cannon 2 | . . . . . . 2 . Ballistic Gun 29 | 2 3 5 6 9 1 1 2 Ballistic Cannon 4 | . . . . 2 . 2 . Launcher 6 | . . . 3 3 . . . Special Weapon . | . . . . . . . . Impact Weapon . | . . . . . . . . Slashing Weapon 6 | . . 1 1 1 . 3 . Piercing Weapon . | . . . . . . . . Special Melee Weapon . | . . . . . . . . Unidentified Prototypes 5 | . . . 1 2 . 2 . Corrupted Parts 1 | . . . . 1 . . . System Corruption 10 | . . . . 10 . . . Parts Lost 38 | . 1 2 3 12 . 12 8 Power 7 | . 1 1 1 2 . 1 1 Propulsion 10 | . . . . 3 . 3 4 Utility 13 | . . 1 1 4 . 5 2 Weapon 8 | . . . 1 3 . 3 1 Highest Loss Streak 5 | . 1 1 2 5 . 3 5 To Critical Strikes . | . . . . . . . . Average Slot Usage (%) 78 | . 89 94 81 95 20 69 44 Engine 6 | . 13 8 9 5 7 5 . Treads 9 | . . . 21 26 . 4 7 Leg 7 | . 27 32 2 . . . . Hover 2 | . . . . . . 7 1 Device 10 | . 12 11 9 11 4 11 6 Storage 5 | . 6 11 9 9 . . 3 Processor 4 | . . . . . . 9 7 Protection 7 | . . 9 4 11 . 9 4 Energy Cannon 1 | . . . . . . 2 3 Ballistic Gun 12 | . 28 20 21 17 7 2 . Ballistic Cannon 2 | . . . . 3 . 5 3 Launcher 1 | . . . 3 5 . . . Slashing Weapon 1 | . . 1 . . . 3 . Naked Turns 107 | . . . . 12 . . 95 Heaviest Build 91 | 8 20 29 35 73 11 91 88 Greatest Support 84 | 20 20 30 67 66 3 84 56 Greatest Overweight (x) 9 | . . 1 9 3 3 7 1 Average Overweight (x) . | . . . . . 3 1 . Largest Inventory Capacity 20 | 5 10 10 10 20 5 20 20 Average Capacity 10 | 5 6 10 10 19 5 7 15 Most Carried 20 | 4 10 10 10 20 4 10 13 Average Carried 7 | 1 5 9 9 13 3 4 7 Final Capacity 20 | 5 10 10 10 5 5 20 5 Final Carried 10 | 3 10 10 10 5 3 10 4 Class Distribution -------------------- 50% | Mutant 23% | Tank 11% | Scavenger-Mutant 7% | Scavenger-Tank 4% | Skirmisher Dominant Class ---------------- Mutant | -10/Materials Mutant | -9/Materials Skirmisher | -8/Materials Tank | -8/Storage Mutant | -7/Factory Mutant | -6/Factory Mutant | -5/Factory Resources | -11 -10 -9 -8 -8 -7 -6 -5 ----------- Run | Yrd Mat Mat Mat Sto Fac Fac Fac Matter Collected 3046 | 264 276 309 495 918 . 784 . Remotely . | . . . . . . . . Salvage Created 4087 | 35 451 366 614 2052 . 513 56 Parts 245 | 4 23 23 33 115 . 43 4 Haulers Intercepted 3 | . 1 . . 2 . . . Recyclers Shooed 1 | . . . 1 . . . . Parts Field Recycled . | . . . . . . . . Retrieved Matter . | . . . . . . . . Parts Self-Destructed . | . . . . . . . . Prevented . | . . . . . . . . Kills | -11 -10 -9 -8 -8 -7 -6 -5 ------- Run | Yrd Mat Mat Mat Sto Fac Fac Fac Combat Hostiles Destroyed 82 | 1 10 10 13 35 . 13 . Melee 6 | . . 4 . . . 2 . Guns 37 | 1 10 6 10 6 . 4 . Cannons 11 | . . . . 5 . 6 . AOE 26 | . . . 3 23 . . . Classes Destroyed 14 | 1 2 2 2 5 . 2 . Worker 5 | . . . . 3 . 1 1 Builder 8 | . . . 2 3 . 2 1 Tunneler 1 | . . . . 1 . . . Hauler 3 | . 1 . . 2 . . . Recycler 1 | . . . . 1 . . . Operator 2 | . . 1 . 1 . . . Swarmer 12 | . 1 4 . 3 . 4 . Grunt 38 | 1 9 3 8 17 . . . Brawler 3 | . . . . 3 . . . Duelist 4 | . . . 1 3 . . . Protector 2 | . . . . 2 . . . Sentry 16 | . . 3 4 7 . 2 . Hunter 1 | . . . . . . 1 . Programmer 6 | . . . . . . 6 . Thug 2 | . . . . 2 . . . Best Kill Streak 9 | 1 2 4 3 9 . 4 2 Combat Bots Only 8 | 1 2 4 3 8 . 4 . Max Kills in Single Turn 6 | 1 1 1 3 6 . 1 2 Gunslinging . | . . . . . . . . Exploded 4 | . . . 3 4 . . . Melee 1 | . . 1 . . . 1 . Uniques/NPCs Destroyed . | . . . . . . . . Combat | -11 -10 -9 -8 -8 -7 -6 -5 -------- Run | Yrd Mat Mat Mat Sto Fac Fac Fac Hostile Shots Fired 664 | 2 25 80 45 138 . 238 136 Missed 202 | . 8 21 6 55 . 67 45 Damage Taken 7825 | 21 345 781 847 2068 . 2068 1695 Core 1795 | 11 91 82 62 333 . 207 1009 Absorbed by Shields 126 | . . . . . . 126 . Regen/Repaired (Parts) 74 | . . 74 . . . . . Core Remaining (%) 72 | 95 59 79 . 28 100 75 . Volleys Fired 172 | 1 24 25 27 50 . 38 7 Largest 3 | 2 2 2 3 3 . 3 3 Hottest 228 | 40 43 46 82 103 . 228 173 Shots Fired 413 | 2 48 50 80 137 . 75 21 Gun 287 | 2 48 50 74 82 . 24 7 Cannon 95 | . . . . 30 . 51 14 Launcher 31 | . . . 6 25 . . . Special . | . . . . . . . . Kinetic 355 | 2 48 50 74 112 . 55 14 Thermal 19 | . . . . . . 12 7 Explosive 2 | . . . 2 . . . . Electromagnetic 37 | . . . 4 25 . 8 . Robot Hit Streak 15 | 1 10 15 7 9 . 7 2 Robot Miss Streak 12 | . 2 2 3 12 . 4 4 Penetration Max . | . . . . . . . . Secondary Targets 1 | . . 1 . . . . . Max Gunslinging Chain 1 | . . 1 . . . . . Shots Hit Robots 251 | 1 33 46 45 68 . 50 8 Core Hits 213 | 1 19 17 32 106 . 22 16 Critical Kills 3 | . 2 . . 1 . . . Critical Parts Destroyed 1 | . . . . 1 . . . Critical Strikes 4 | . 2 . . 2 . . . Destroy 4 | . 2 . . 2 . . . Melee Attacks 40 | . . 17 2 . . 21 . Impact . | . . . . . . . . Slashing 40 | . . 17 2 . . 21 . Piercing . | . . . . . . . . Sneak Attacks 3 | . . . . . . 3 . Combat Hostiles . | . . . . . . . . Follow-up Attacks . | . . . . . . . . Damage Inflicted 7976 | 15 439 756 1260 3705 . 1382 419 Guns 2492 | 15 436 496 609 695 . 170 71 Cannons 1430 | . . . . 407 . 902 121 Explosions 3450 | . . . 651 2576 . . 223 Melee 537 | . . 249 . . . 288 . Ramming 67 | . 3 11 . 27 . 22 4 Kinetic 3564 | 15 436 496 609 1102 . 810 96 Thermal 780 | . . . 275 168 . 241 96 Explosive 442 | . . . 286 156 . . . Electromagnetic 2586 | . . . 90 2252 . 21 223 Impact . | . . . . . . . . Slashing 537 | . . 249 . . . 288 . Piercing . | . . . . . . . . Highest Corruption 12 | . . . . 12 . 5 . Average Corruption 5 | . . . . 6 . 4 . Corruption Purged . | . . . . . . . . Corruption Blocked . | . . . . . . . . Effects 75 | . . . . 28 . 47 . Message Errors 17 | . . . . 7 . 10 . Matter Fused 21 | . . . . 7 . 14 . Heat Flow Errors 10 | . . . . 6 . 4 . Energy Discharges 10 | . . . . 4 . 6 . Parts Rejected 2 | . . . . . . 2 . Parts Fused 1 | . . . . . . 1 . Data Loss (minor) 4 | . . . . 2 . 2 . Data Loss (major) 4 | . . . . 1 . 3 . Misfires 2 | . . . . . . 2 . Alerts 2 | . . . . . . 2 . Weapon Failures 2 | . . . . 1 . 1 . Overload Shots . | . . . . . . . . Overflow Damage 131 | . . 45 8 47 . 31 . Projectiles . | . . . . . . . . Explosions 55 | . . . 8 47 . . . Melee 76 | . . 45 . . . 31 . Knockbacks 14 | . . . . 14 . . . Impact . | . . . . . . . . Kinetic 12 | . . . . 12 . . . Secondary 2 | . . . . 2 . . . Self-Inflicted Damage 662 | . . . 233 427 . . 2 Shots 26 | . . . 7 19 . . . Rammed 11 | . . . . 4 . 6 1 Targets Rammed 15 | . 2 2 . 4 . 6 1 Kicked 4 | . 2 2 . . . . . Crushed . | . . . . . . . . Highest Temperature 640 | . . 3 60 343 . 532 640 Average Temperature 133 | . . 2 20 102 . 162 355 Received Heat Transfer 1713 | 12 90 240 360 648 . 168 195 Effects 22 | . . . . 8 . 3 11 Shutdowns 1 | . . . . . . 1 . Energy Bleed 3 | . . . . 2 . . 1 Interference 6 | . . . . 4 . 2 . Matter Decay 2 | . . . . . . . 2 Damage (minor) 2 | . . . . 2 . . . Damage (major) 8 | . . . . . . . 8 Siege Activations . | . . . . . . . . Robots Corrupted 2 | . . . . 2 . . . Combat Hostiles 1 | . . . . 1 . . . Parts Fried 5 | . . . . 5 . . . Impact Corruptions . | . . . . . . . . Robots Melted . | . . . . . . . . Combat Hostiles . | . . . . . . . . Parts Melted 2 | . . . . 1 . 1 . Heat Transferred 1000 | . . . 200 300 . 350 150 Parts Sabotaged . | . . . . . . . . Parts Stolen . | . . . . . . . . Parts Stripped . | . . . . . . . . Power Chain Reactions 7 | . . . . 7 . . . Alert | -11 -10 -9 -8 -8 -7 -6 -5 ------- Run | Yrd Mat Mat Mat Sto Fac Fac Fac Peak Influence 1262 | 20 169 271 304 1262 455 231 242 Initial 455 | . 13 68 31 65 455 222 92 Average 151 | 6 75 115 156 366 455 96 95 Maximum Alert Level 4 | . . 1 1 4 2 1 1 Low Security (%) 76 | 100 100 85 71 36 . 84 96 Level 1 15 | . . 14 28 29 . 15 3 Level 2 5 | . . . . 24 100 . . Level 3 . | . . . . 4 . . . Level 4 . | . . . . 5 . . . Level 5 . | . . . . . . . . High Security . | . . . . . . . . Max Security . | . . . . . . . . Squads Dispatched 29 | . 3 5 2 12 . 7 . Investigation 4 | . 1 1 . 2 . . . Extermination 4 | . . . . . . 4 . Reinforcement 14 | . 2 4 2 3 . 3 . Assault 5 | . . . . 5 . . . Garrison 2 | . . . . 2 . . . Intercept . | . . . . . . . . Searches Triggered . | . . . . . . . . Construction Impeded 2 | . . . 1 1 . . . Haulers Reinforced . | . . . . . . . . Active Scanning Responses . | . . . . . . . . Cargo Convoy Interrupts . | . . . . . . . . Stealth | -11 -10 -9 -8 -8 -7 -6 -5 --------- Run | Yrd Mat Mat Mat Sto Fac Fac Fac Distress Signals 14 | . 3 6 . 3 . 1 1 Communications Jammed . | . . . . . . . . Distress Signals . | . . . . . . . . Times Spotted 163 | 1 20 18 13 64 . 22 25 Peak Tracking Total 12 | 1 4 5 3 12 . 5 11 Tactical Retreats 11 | . 1 . . 1 . 1 8 Traps | -11 -10 -9 -8 -8 -7 -6 -5 ------- Run | Yrd Mat Mat Mat Sto Fac Fac Fac Traps Triggered 7 | . 2 2 . 1 . 1 1 Indirectly 1 | . . . . 1 . . . Trap Hack Attempts . | . . . . . . . . Triggered . | . . . . . . . . Disarmed . | . . . . . . . . Reprogrammed . | . . . . . . . . Reused . | . . . . . . . . Traps Extracted . | . . . . . . . . Installed . | . . . . . . . . Triggered . | . . . . . . . . Machines | -11 -10 -9 -8 -8 -7 -6 -5 ---------- Run | Yrd Mat Mat Mat Sto Fac Fac Fac Machines Disabled 17 | . . . 4 9 . 2 2 Max in Single Turn 2 | . . . 2 2 . 1 1 Garrison Access 1 | . . . . 1 . . . Machines Repaired . | . . . . . . . . Machines Dismantled . | . . . . . . . . Machines Sabotaged . | . . . . . . . . Overloaded Fab Kills . | . . . . . . . . Hacking | -11 -10 -9 -8 -8 -7 -6 -5 --------- Run | Yrd Mat Mat Mat Sto Fac Fac Fac Machines Accessed 6 | . . 3 . 3 . . . Terminals 5 | . . 2 . 3 . . . Fabricators . | . . . . . . . . Repair Stations 1 | . . 1 . . . . . Recycling Units . | . . . . . . . . Scanalyzers . | . . . . . . . . Garrison Access . | . . . . . . . . Total Hacks 14 | . . 7 . 7 . . . Successful 9 | . . 4 . 5 . . . Failed 5 | . . 3 . 2 . . . Catastrophic 1 | . . . . 1 . . . Database Lockouts . | . . . . . . . . Manual 3 | . . . . 3 . . . Terminals 11 | . . 4 . 7 . . . Fabricators . | . . . . . . . . Repair Stations 3 | . . 3 . . . . . Recycling Units . | . . . . . . . . Scanalyzers . | . . . . . . . . Garrison Access . | . . . . . . . . Terminal Hacks 7 | . . 2 . 5 . . . Record 3 | . . 1 . 2 . . . Alert Level 3 | . . 1 . 2 . . . Transport Status 1 | . . . . 1 . . . Fabricator Hacks . | . . . . . . . . Repair Station Hacks 2 | . . 2 . . . . . Scan Component 1 | . . 1 . . . . . Repair 1 | . . 1 . . . . . Recycling Unit Hacks . | . . . . . . . . Scanalyzer . | . . . . . . . . Garrison Access Hacks . | . . . . . . . . Unauthorized Hacks . | . . . . . . . . Terminals . | . . . . . . . . Fabricators . | . . . . . . . . Repair Stations . | . . . . . . . . Recycling Units . | . . . . . . . . Scanalyzers . | . . . . . . . . Garrison Access . | . . . . . . . . Data Cores Recovered . | . . . . . . . . Used . | . . . . . . . . Hacking Detections 5 | . . 2 . 3 . . . Full Trace Events 4 | . . 2 . 2 . . . Feedback Events . | . . . . . . . . Feedback Blocked . | . . . . . . . . Robot Schematics Acquired . | . . . . . . . . Robots Built . | . . . . . . . . Authchips . | . . . . . . . . Time . | . . . . . . . . Total Robot Build Rating . | . . . . . . . . Part Schematics Acquired . | . . . . . . . . Parts Built . | . . . . . . . . Authchips . | . . . . . . . . Time . | . . . . . . . . Total Part Build Rating . | . . . . . . . . Parts Repaired 1 | . . 1 . . . . . Time 26 | . . 26 . . . . . Parts Recycled . | . . . . . . . . Recycled Matter . | . . . . . . . . Retrieved Matter . | . . . . . . . . Retrieved Components . | . . . . . . . . Parts Scanalyzed . | . . . . . . . . Part Schematics Acquired . | . . . . . . . . Parts Damaged . | . . . . . . . . Bothacking | -11 -10 -9 -8 -8 -7 -6 -5 ------------ Run | Yrd Mat Mat Mat Sto Fac Fac Fac Used RIF Installer . | . . . . . . . . Robots Hacked . | . . . . . . . . Non-combat . | . . . . . . . . Combat . | . . . . . . . . Robot Hacks Applied . | . . . . . . . . Relay Couplers Released 2 | . . . . 2 . . . Machine Destruction 2 | . . . . 2 . . . Fabnet Peak Effective % . | . . . . . . . . Robots Rewired . | . . . . . . . . Allies Hacked . | . . . . . . . . Hacks Repelled . | . . . . . . . . Allies | -11 -10 -9 -8 -8 -7 -6 -5 -------- Run | Yrd Mat Mat Mat Sto Fac Fac Fac Total Allies 12 | . . . . 12 . . . Largest Group 10 | . . . . 10 . . . Highest-Rated Group 173 | . . . . 173 . . . Highest-Rated Ally 31 | . . . . 31 . . . Total Orders . | . . . . . . . . Ally Attacks 83 | . . . . 83 . . . Total Damage 1095 | . . . . 1095 . . . Kills 8 | . . . . 8 . . . Allies Corrupted 1 | . . . . 1 . . . Allies Melted . | . . . . . . . . Intel | -11 -10 -9 -8 -8 -7 -6 -5 ------- Run | Yrd Mat Mat Mat Sto Fac Fac Fac Robot Analysis Total . | . . . . . . . . Derelict Logs Recovered . | . . . . . . . . Drone Launches . | . . . . . . . . Drone Recoveries . | . . . . . . . . Exploration | -11 -10 -9 -8 -8 -7 -6 -5 ------------- Run | Yrd Mat Mat Mat Sto Fac Fac Fac Turns Passed 7715 | 123 767 1108 956 1241 112 2767 641 Spaces Moved 4305 | 106 513 659 477 568 55 1359 568 Core 454 | 30 . . 2 26 55 160 181 Treads 1477 | . . . 438 542 . 328 169 Legs 1285 | 76 513 659 37 . . . . Wheels . | . . . . . . . . Hover 748 | . . . . . . 675 73 Flight 341 | . . . . . . 196 145 Fastest Speed 40 | 50 120 120 120 50 200 108 40 Average Speed 149 | 100 120 129 152 175 200 179 104 Slowest Speed 500 | 120 120 190 500 385 200 400 240 Overloaded Moves . | . . . . . . . . Propulsion Burnouts . | . . . . . . . . Robots Hopped 3 | . . . . . . . 3 Cave-ins Triggered . | . . . . . . . . Exploration Rate (%) 26 | 8 50 43 23 53 1 24 13 Regions Visited 7 Branch Regions 1 Pre-discovered Areas . | . . . . . . . . Known Exits Taken 1 | . . . . . . 1 . Unknown Exits Taken 6 | 1 1 1 1 1 1 . . Scrap Searched . | . . . . . . . . Spaces Dug 21 | . . 4 2 . . 15 . Terrain Destroyed 141 | . . 4 49 56 . 27 5 Melee 19 | . . 4 2 . . 13 . Projectile 19 | . . . . . . 14 5 AOE 103 | . . . 47 56 . . . Terrain Rammed . | . . . . . . . . Walls Destroyed . | . . . . . . . . Machines Disabled . | . . . . . . . . Actions | -11 -10 -9 -8 -8 -7 -6 -5 --------- Run | Yrd Mat Mat Mat Sto Fac Fac Fac Total 5156 | 121 618 841 648 699 57 1578 594 Wait 333 | . 46 108 85 19 . 71 4 Move 4292 | 105 512 658 476 567 54 1358 562 Hop 3 | . . . . . . . 3 Pick Up 73 | 8 10 5 15 15 . 14 6 Fast Attach 55 | . 5 2 6 6 1 32 3 Attach 32 | 5 1 3 5 6 2 4 6 Detach 8 | . . . 1 3 . 3 1 Swap 62 | 1 8 12 10 20 . 10 1 Drop 69 | 1 10 9 21 7 . 21 . Fire 172 | 1 24 25 27 50 . 38 7 Melee 40 | . . 17 2 . . 21 . Ram 1 | . . . . . . . 1 Kick 4 | . 2 2 . . . . . Crush 10 | . . . . 4 . 6 . Escape Stasis . | . . . . . . . . Rewire 2 | . . . . 2 . . . Trap . | . . . . . . . . Miscellaneous . | . . . . . . . . Route ------- -11/Scrapyard -10/Materials -9/Materials -8/Materials -8/Storage -7/Factory -6/Factory -5/Factory History --------- Turn | Location | Event 2 | -11/Scrapyard | Met Revision 17 73 | -11/Scrapyard | Discovered new exit (range 8) 124 | -11/Scrapyard | Entered Materials 312 | -10/Materials | Build established: Mutant 762 | -10/Materials | Discovered new exit (range 15) 891 | -10/Materials | Entered another Materials area 891 | -9/Materials | Evolved 2 slots: Propulsion x1, Utility x1 1233 | -9/Materials | Discovered new exit (range 8) 1759 | -9/Materials | Build established: Scavenger-Mutant 1829 | -9/Materials | Repaired Assault Rifle 1999 | -9/Materials | Entered another Materials area 1999 | -8/Materials | Evolved 2 slots: Utility x1, Weapon x1 2639 | -8/Materials | Discovered new exit (range 7) 2955 | -8/Materials | Entered Storage 3266 | -8/Storage | Build established: Tank 3433 | -8/Storage | Lost 3 parts (1p1u1w) 3554 | -8/Storage | Met a pair of Derelict thieves 3655 | -8/Storage | System corruption reached 10% 3670 | -8/Storage | Destroyed 8 combat bots 3883 | -8/Storage | Garrison activated, responded to threat 3948 | -8/Storage | Lost 3 parts (2n1u) 4052 | -8/Storage | Assisted by bots powering up and referring to "LRC-V3" 4124 | -8/Storage | Destroyed 7 combat bots 4137 | -8/Storage | Discovered new exit (range 16) 4155 | -8/Storage | First assault squad dispatched 4184 | -8/Storage | Released all parts (6) 4189 | -8/Storage | Core integrity fell below 50% 4196 | -8/Storage | Entered Factory 4196 | -7/Factory | Evolved 2 slots: Propulsion x1, Utility x1 4199 | -7/Factory | Lost 9 allies 4212 | -7/Factory | Discovered new exit (range 5) 4213 | -7/Factory | Lost 5 parts (1p1n1u2w) 4308 | -7/Factory | Entered another Factory area 4308 | -6/Factory | Evolved 2 slots: Utility x2 4464 | -6/Factory | Build established: Mutant 5409 | -6/Factory | Lost 3 parts (1u2w) 6892 | -6/Factory | Lost 3 parts (1p1n1u) 6955 | -6/Factory | Build established: Tank 7021 | -6/Factory | Discovered new exit (range 10) 7055 | -6/Factory | Identified exit to Factory 7067 | -6/Factory | Found Launcher Loader 7075 | -6/Factory | Entered another Factory area 7075 | -5/Factory | Evolved 2 slots: Power x1, Utility x1 7516 | -5/Factory | Released all parts (9) 7547 | -5/Factory | Lost 5 parts (1p1n2u1w) 7594 | -5/Factory | Core integrity fell below 50% 7673 | -5/Factory | Core integrity fell below 20% 7703 | -5/Factory | Lost 3 parts (3n) 7716 | -5/Factory | Destroyed by S-27 Virus with Autogun Last Messages --------------- Slug penetrates Door. Slug penetrates Wall. M-28 Smith repairs G-50 Soldier. Slug penetrates Wall. Acquired Nuclear Pulse Array. Acquired Unknown Leg. Penetrated by Slug. Airjet destroyed. Triggered Tiamat Bomb Trap. An explosion rips through the floor. Airjet destroyed. Slug penetrates G-50 Soldier. Nuclear Pulse Array destroyed. Penetrated by Slug. K-01 Serf cleans the Manufacturing Mainframe. Slammed into K-01 Serf. O-24 Administrator: "IFF HANDSHAKE FAILED. SECURING TERMINAL." [Achievement: First Step to Greatness] [Achievement: 5k Club] Map ----- +----------------------------------------------------+ | ?????????????????????????????????????????????????? | | ?????????????????????????????????????????????????? | | ?????????????????????????????????????????????????? | | ?????????????????????????????????????????????????? | | ?????????????????????????????????????????????????? | | ?????????????????????????????????????????????????? | | ?????????????????????????????????????????????????? | | ?????????????????????????????????????????????????? | | ?????????????????????????????????????????????????? | | ?????????????????????????????????????????????????? | | ?????????????????????????????????????????????????? | | ?????????????????????????????????????????????????? | | ?????????????????????????????????????????????????? | | ?????????????????????????????????????????????????? | | ?????????????????????????????????????????????????? | | ?????????????????????????????????????????????????? | | ?????????????????????????????????????????????????? | | ?????????????????????????????????????????????????? | | ?????????????????????????????????????????????????? | | ?????????????????????????????????????????????????? | | ?????????????????????????????????????????????????? | | ?????????????###########?????????? #?????????????? | | ?????????????# ######### ###???????????? | | ?????????????# # #???????????? | | ?????????????# """ """ # ss s ????????? | | ?????????????# """ """ + @ ????????? | | ?????????????# """ """ # s????????? | | ?????????????# "" "" # #???????????? | | ?????????????# "" "" # #???????????? | | ?????????????# # #???????????? | | ?????????????#+##+###### #???????????? | | ?????????????# #????############ #???????????? | | ?????????????# #????????????????? #???????????? | | ?????????????# #??????????????????????????????? | | ????#????????# #??????????????????????????????? | | ????# ??????# #??????????????????????????????? | | ????# ????# #??????????????????????????????? | | ????# ??# #??????????????????????????????? | | ????# # #####??????????????????????????? | | ????# + ???????????????????? | | ????# # ############??????????????????????? | | ????#######??# #?? #???????????????????????? | | ?????????????# #? #???????????????????????? | | ?????????????# # #???????????????????????? | | ###### # #???????????????????????? | | ! + #???????????????????????? | | ###### # #???????????????????????? | | ?????????????# # ! #???????????????????????? | | ?????????????# #? #???????????????????????? | | ?????????????# #??########??#########????????????? | +----------------------------------------------------+ Best States ------------- Heat Dissipation 51 Energy Generation 18 Energy Capacity 450 Matter Stores 300 Matter Capacity 300 Sight Range 16 Robot Scan Range 16 Terrain Scan Density 10 ECM Strength 2 Power Amplification 20 Armor Coverage 450 Resistance: EX 50 Evasion (%) 62 Melee Accuracy 8 Recoil Reduction 3 Matter Filtering 30 Kinecelleration 30 Item Schematics ----------------- None Robot Schematics ------------------ None Fabricated ------------ Nothing Alien Tech Used ----------------- None Achievements -------------- 5k Club Backstab Crack Shot First Step to Greatness I Spy Let's See Who's Tougher Loot Pinata Made in Tau Ceti IV More Dakka Please One Hack Too Far Part-time Excavator Part-time Mechanic Power Corrupts Risk Taker Serviceable Loadout Significant Disruption Storm Trooper System Compromised The More The Merrier Troublemaker Uninvited Guest Challenges ------------ None Game ------ Seed AutogunSpacefoldJammer Manual? 0 Play Time 01:09:30 Cumulative 1.0 hours Start 2024.04.17 @ 18:15:03 End 2024.04.17 @ 19:20:48 Sessions 1 Manual Loads 0 Difficulty Rogue Special Mode None Game No. 1 Rogue 1 Adventurer 0 Explorer 0 Win Type - Total 0 Types 0/0/0/0/0/0/0/0/0 Lore% 0 Gallery% 6 Achievement% 8 Wizard Run 0 Options --------- Layout 1 ASCII 0 Keyboard 1 Movement Arrows Keybinds 0 Fullscreen 1 Font 32/SmallcapsGlow Map View 50x40 Zoom Use 0% Tactical HUD 0 Map Filters NONE Filters NONE Steam 1 RUN: a3a0a9f2-0883-4d81-a28c-692dce12bc83